bitfinex/quotes_ETHUSD_20260216
["timestamp","ask_amount","ask_price","bid_price","bid_amount"]
[1771214655782,1.11091444,1965.9,1965.0,0.48051202]
[1771214657256,1.11091444,1965.9,1965.2,0.47897316]
[1771214657456,1.11091444,1965.8,1965.2,0.47897316]
[1771214657688,1.11091444,1966.0,1965.2,0.47897316]
[1771214658986,0.46961238,1966.1,1965.2,0.47897316]
[1771214659187,1.11091444,1966.0,1965.2,0.47897316]
[1771214660059,1.58052682,1966.0,1965.2,0.47897316]
[1771214660568,0.0011,1965.9,1965.2,0.47897316]
[1771214661066,1.11091444,1965.8,1965.2,0.47897316]
[1771214662275,1.11091444,1965.8,1965.4,0.47897316]
[1771214666266,1.11091444,1965.8,1965.2,0.47897316]
[1771214666466,1.11091444,1965.8,1965.2,0.5294984]
[1771214666890,1.11091444,1965.8,1965.2,0.47897316]
[1771214672008,1.11091444,1965.7,1965.3,8.25264578]
[1771214672931,1.11091444,1965.7,1965.4,0.47897316]
[1771214674238,1.11091444,1965.7,1965.6,0.47897316]
[1771214674739,1.11091444,1965.7,1965.5,7.82417728]
[1771214674910,1.11091444,1965.7,1965.4,0.47897316]
[1771214676534,1.11091444,1965.6,1965.4,0.47897316]
[1771214676723,1.11091444,1965.8,1965.4,0.47897316]
[1771214677124,1.11091444,1965.8,1965.5,7.77367262]
[1771214677330,1.11091444,1965.8,1965.5,8.25264578]
[1771214678610,1.11091444,1965.7,1965.5,8.25264578]
[1771214679216,1.11091444,1965.7,1965.6,0.47897316]
[1771214679436,0.0011,1965.9,1965.6,0.47897316]
[1771214679948,0.0011,1965.9,1965.7,7.77367262]
[1771214680336,0.0011,1965.9,1965.7,8.25264578]
[1771214687759,0.0011,1965.9,1965.5,9.42755692]
[1771214688855,0.0011,1965.9,1965.5,9.42855692]
[1771214690235,0.0011,1965.9,1965.7,7.77367262]
[1771214690430,0.46458335,1966.4,1965.7,8.23555692]
[1771214690757,0.46458335,1966.4,1965.9,7.77367262]
[1771214691123,0.46458335,1966.4,1965.9,7.82413619]
[1771214691827,0.46458335,1966.8,1965.9,7.82413619]
[1771214692323,0.46458335,1966.8,1965.9,7.77367262]
[1771214693030,0.46458335,1966.8,1965.9,8.23555692]
[1771214694860,0.46458335,1966.8,1966.0,0.4618843]
[1771214695741,0.46458335,1966.8,1966.1,7.77367262]
[1771214696252,0.46458335,1966.8,1965.9,7.77367262]
[1771214697042,0.46458335,1966.8,1965.9,8.23555692]
[1771214701174,0.46458335,1966.6,1965.8,1.197]
[1771214701372,0.46458335,1966.6,1965.5,8.23655692]
[1771214701373,0.46458335,1966.4,1965.5,7.77467262]
[1771214701565,0.46458335,1966.4,1965.5,8.97067262]
[1771214701769,0.46458335,1966.2,1965.5,1.197]
[1771214702146,0.46458335,1966.2,1965.6,0.001]
[1771214702456,0.46458335,1965.8,1965.3,0.001]
[1771214702649,1.33758335,1965.8,1965.3,0.001]
[1771214702855,0.46458335,1965.7,1965.3,0.001]
[1771214703277,0.46458335,1965.5,1965.3,0.001]
[1771214703477,0.46458335,1965.5,1965.0,0.00153886]
[1771214705081,0.1024,1966.2,1965.0,0.00153886]
[1771214705082,0.875,1965.6,1965.0,0.00153886]
[1771214705677,1.33958335,1965.7,1965.0,0.00153886]
[1771214706074,0.46458335,1965.7,1965.0,0.46342316]
[1771214706291,0.876,1965.7,1965.0,0.46342316]
[1771214706593,0.46458335,1965.9,1965.0,0.46342316]
[1771214706789,0.876,1965.8,1965.0,0.46342316]
[1771214706973,0.876,1965.8,1965.0,0.00153886]
[1771214706974,0.46458335,1965.7,1965.0,0.00153886]
[1771214712502,0.876,1965.8,1965.1,0.4628843]
[1771214713198,1.34058335,1965.8,1965.1,0.4628843]
[1771214713691,0.46292669,1965.7,1965.1,0.001]
[1771214715295,0.46292669,1965.7,1965.2,0.001]
[1771214715464,0.46292669,1965.6,1965.2,0.001]
[1771214718803,0.887,1965.6,1965.2,0.001]
[1771214721515,0.0011,1965.7,1965.2,0.001]
[1771214722712,8.24161013,1965.7,1965.2,0.001]
[1771214723215,0.0011,1965.7,1965.2,0.49301206]
[1771214723413,0.0011,1965.7,1965.3,0.49201206]
[1771214723619,0.0011,1965.7,1965.5,0.49201206]
[1771214724481,0.0011,1965.8,1965.6,7.77758344]
[1771214724686,0.0011,1965.8,1965.5,0.49201206]
[1771214727441,0.0011,1965.8,1965.6,8.2695955]
[1771214728928,0.0011,1965.8,1965.4,9.4695955]
[1771214729131,0.0011,1965.8,1965.5,0.49201206]
[1771214729903,0.0011,1965.8,1965.6,0.49201206]
[1771214730104,0.46292669,1966.6,1965.7,0.49201206]
[1771214730337,1.34992669,1966.6,1965.9,0.49201206]
[1771214730833,0.887,1966.6,1966.0,8.2695955]
[1771214732733,0.46446555,1967.0,1966.2,7.77758344]
[1771214733036,1.34892669,1966.9,1966.1,0.49201206]
[1771214734214,0.886,1966.9,1966.1,0.49201206]
[1771214734415,0.00153886,1967.0,1966.5,7.77758344]
[1771214734633,0.00153886,1967.0,1966.4,0.49201206]
[1771214735735,0.00153886,1967.0,1966.2,0.49201206]
[1771214735736,0.46446555,1967.0,1966.2,0.49201206]
[1771214735937,0.46292669,1966.9,1966.1,8.98158344]
[1771214736448,0.46292669,1966.9,1966.1,9.4735955]
[1771214738048,7.77758344,1966.9,1966.1,0.49201206]
[1771214738220,0.46292669,1966.8,1966.1,0.49201206]
[1771214738416,7.77758344,1966.9,1966.0,1.207]
[1771214738650,0.46402669,1966.7,1966.0,1.69901206]
[1771214739641,0.0011,1966.7,1966.1,0.49201206]
[1771214741158,0.46402669,1966.7,1966.0,1.207]
[1771214741328,0.46292669,1966.6,1965.7,8.2695955]
[1771214741652,0.46292669,1966.6,1966.1,0.001]
[1771214742034,0.46402669,1966.6,1966.1,0.001]
[1771214745248,8.24206848,1966.4,1966.1,0.001]
[1771214745552,0.48693935,1966.3,1966.1,0.001]
[1771214745850,1.37293935,1966.3,1965.5,9.16734414]
[1771214746263,1.37293935,1966.3,1965.6,0.4737607]
[1771214746421,7.77868344,1966.6,1965.9,8.25134414]
[1771214746422,0.0011,1966.6,1965.9,8.25134414]
[1771214746627,0.8871,1966.6,1966.0,0.4737607]
[1771214747152,0.0011,1966.6,1966.0,0.4737607]
[1771214747321,0.8871,1966.6,1966.0,0.4737607]
[1771214749239,0.0011,1966.6,1966.0,0.4737607]
[1771214749430,0.0011,1966.6,1966.1,7.77758344]
[1771214749636,0.0011,1966.6,1966.2,0.4737607]
[1771214751524,0.0011,1966.6,1966.3,8.25134414]
[1771214751955,0.0011,1966.6,1966.3,7.77758344]
[1771214753079,0.0011,1966.6,1966.3,0.4737607]
[1771214756091,0.916,1968.5,1966.8,0.4737607]
[1771214756252,0.48847821,1968.0,1967.1,0.4737607]
[1771214756571,0.48847821,1968.0,1967.2,7.77758344]
[1771214756769,0.48847821,1968.0,1967.2,8.98658344]
[1771214756938,0.48847821,1968.0,1967.2,9.46034414]
[1771214757365,0.48693935,1967.9,1967.2,1.209]
[1771214758272,0.48693935,1967.9,1967.0,0.4737607]
[1771214760870,0.88353886,1968.0,1967.0,0.4737607]
[1771214761379,0.00153886,1968.0,1967.1,0.4737607]
[1771214761969,0.00153886,1968.0,1967.2,0.4737607]
[1771214762145,0.00153886,1968.0,1967.4,0.4737607]
[1771214765867,0.00153886,1968.0,1967.5,0.4737607]
[1771214767973,0.00153886,1968.0,1967.3,1.6807607]
[1771214768285,0.0011,1967.9,1967.4,0.4737607]
[1771214775209,0.0011,1967.9,1967.3,1.207]
[1771214775403,0.48023827,1967.9,1967.3,1.207]
[1771214779895,8.24055985,1967.7,1967.0,0.915]
[1771214780100,0.47913827,1967.4,1966.8,1.203]
[1771214780299,7.76142158,1967.5,1966.8,1.203]
[1771214780502,0.47913827,1967.4,1966.6,0.46361561]
[1771214780801,0.47913827,1967.4,1966.3,0.915]
[1771214780802,8.24055985,1967.3,1966.4,1.66761561]
[1771214781709,0.47913827,1967.2,1966.4,1.66761561]
[1771214781879,0.47913827,1967.2,1966.9,0.001]
[1771214782206,0.47913827,1967.2,1966.8,0.001]
[1771214788490,1.34613827,1967.4,1966.8,0.001]
[1771214790726,0.47913827,1967.4,1966.8,0.001]
[1771214796189,0.47913827,1967.4,1966.9,0.001]
[1771214796812,0.48023827,1967.3,1966.9,0.001]
[1771214803426,0.0011,1967.3,1966.9,0.001]
[1771214804054,0.0011,1967.3,1966.9,0.455689]
[1771214804219,0.0011,1967.3,1967.0,0.454689]
[1771214806851,10.35,1967.9,1967.0,0.48510922]
[1771214807166,0.0011,1967.8,1967.0,0.48510922]
[1771214807351,0.4634197,1968.0,1967.0,0.48510922]
[1771214808461,0.0011,1967.9,1967.0,0.48510922]
[1771214809047,0.0011,1967.8,1967.0,0.48510922]
[1771214810474,0.0011,1967.3,1967.0,0.48510922]
[1771214817363,0.0011,1967.4,1967.0,0.48510922]
[1771214817611,0.00153886,1968.0,1967.0,0.48510922]
[1771214818448,0.46188084,1967.9,1967.0,0.48510922]
[1771214820577,0.00153886,1968.0,1967.0,0.48510922]
[1771214820948,0.00153886,1968.0,1967.2,0.48510922]
[1771214821568,0.4634197,1968.0,1967.2,0.48510922]
[1771214822074,0.4634197,1968.0,1967.1,0.7]
[1771214822244,0.4634197,1968.0,1966.9,0.001]
[1771214822451,0.4634197,1968.0,1966.9,0.48610922]
[1771214823878,0.4634197,1968.0,1967.1,0.48610922]
[1771214824247,0.0011,1967.9,1967.1,0.48610922]
[1771214824862,0.0011,1967.9,1967.2,0.48510922]
[1771214825454,0.0011,1967.9,1967.3,0.48510922]
[1771214827883,0.0011,1967.9,1967.1,0.001]
[1771214828275,0.0011,1967.9,1967.1,0.48610922]
[1771214831095,0.0011,1967.9,1967.2,0.7]
[1771214831269,0.46298084,1967.9,1967.2,0.7]
[1771214831468,0.46298084,1967.9,1967.1,0.48610922]
[1771214832154,0.0011,1967.9,1967.2,0.48510922]
[1771214832575,0.46298084,1967.9,1967.1,0.001]
[1771214832875,0.46298084,1967.9,1967.1,0.48610922]
[1771214833900,0.46298084,1967.9,1967.1,0.001]
[1771214836891,0.46361593,1967.8,1967.1,0.001]
[1771214837388,0.0011,1967.9,1967.1,0.001]
[1771214837591,0.46361593,1967.8,1967.1,0.001]
[1771214838161,0.46361593,1967.8,1967.2,0.001]
[1771214838358,0.46471593,1967.8,1967.2,0.001]
[1771214844778,0.46361593,1967.6,1967.2,0.001]
[1771214844979,1.32261593,1967.5,1967.2,0.001]
[1771214845577,0.46361593,1967.7,1967.2,0.001]
[1771214845778,0.861,1967.6,1967.2,0.001]
[1771214849614,0.46361593,1967.5,1967.2,0.001]
[1771214851515,0.46361593,1967.5,1967.3,0.001]
[1771214852796,0.46361593,1967.5,1967.0,0.001]
[1771214858711,0.46361593,1967.3,1967.0,0.001]
[1771214858903,0.46361593,1967.1,1967.0,0.001]
[1771214860018,0.868,1967.2,1967.0,0.001]
[1771214860205,1.33161593,1967.2,1967.0,0.001]
[1771214860517,1.33161593,1967.2,1966.4,0.49124135]
[1771214860518,0.46361593,1967.0,1966.3,0.49124135]
[1771214861328,1.33161593,1967.2,1966.3,0.49124135]
[1771214861635,0.46361593,1967.1,1966.3,0.49124135]
[1771214864709,0.46361593,1967.1,1966.7,0.001]
[1771214866128,0.46361593,1967.1,1966.5,0.001]
[1771214869132,0.48038801,1967.2,1966.5,0.001]
[1771214869324,1.34838801,1967.1,1966.5,0.001]
[1771214873445,0.868,1967.1,1966.5,0.45144397]
[1771214875553,0.868,1967.1,1966.6,0.45144397]
[1771214875943,8.63519256,1967.1,1966.6,0.45144397]
[1771214877022,9.11558057,1967.1,1966.6,0.001]
[1771214877228,7.76719256,1966.9,1966.6,0.001]
[1771214877541,7.76719256,1966.9,1966.7,0.001]
[1771214879353,0.0011,1967.0,1966.7,0.001]
[1771214880171,7.76719256,1966.9,1966.7,0.001]
[1771214880450,0.871,1966.8,1966.6,0.45044397]
[1771214880822,0.871,1966.8,1966.5,0.001]
[1771214891530,0.871,1966.8,1966.6,0.001]
[1771214891730,0.0011,1966.7,1966.6,0.001]
[1771214892872,0.0011,1966.7,1966.6,0.45144397]
[1771214893837,0.45563157,1966.7,1966.3,0.001]
[1771214894071,0.45563157,1966.7,1966.0,0.46601026]
[1771214894072,7.76890496,1966.5,1966.0,0.46601026]
[1771214894277,0.877,1966.5,1966.0,0.46601026]
[1771214894938,0.0011,1966.7,1966.0,0.46601026]
[1771214895144,0.877,1966.6,1966.0,0.46601026]
[1771214897043,1.33153157,1966.6,1966.0,0.46601026]
[1771214897469,7.76890496,1966.5,1966.0,0.00253886]
[1771214897675,0.877,1966.6,1966.0,0.46601026]
[1771214898169,7.76890496,1966.5,1966.0,0.00253886]
[1771214898368,7.76890496,1966.5,1966.0,0.46601026]
[1771214899863,7.76890496,1966.5,1966.0,0.00253886]
[1771214900059,8.22343653,1966.5,1966.0,0.00253886]
[1771214900283,0.45453157,1966.4,1966.0,0.00253886]
[1771214900468,7.76890496,1966.5,1966.0,0.00253886]
[1771214900469,0.883,1966.3,1966.0,0.00253886]
[1771214902546,0.883,1966.3,1966.0,0.46601026]
[1771214905062,0.883,1966.3,1966.1,0.001]
[1771214908181,0.45073632,1966.2,1965.9,0.001]
[1771214909383,0.89,1966.1,1965.9,0.49316003]
[1771214912765,0.889,1966.3,1965.9,0.49316003]
[1771214913858,9.13674128,1966.7,1966.1,0.49216003]
[1771214913859,0.0011,1966.7,1966.1,0.49216003]
[1771214914060,0.0011,1966.7,1966.3,0.49216003]
[1771214915775,0.0011,1966.7,1966.2,7.76890496]
[1771214915776,0.0011,1966.7,1966.5,0.49216003]
[1771214915974,0.00263886,1967.0,1966.6,0.49216003]
[1771214917166,0.0011,1966.6,1966.3,0.49216003]
[1771214920497,0.0011,1966.6,1966.4,0.49216003]
[1771214926689,0.0011,1966.9,1966.4,0.46038172]
[1771214927005,0.0011,1966.9,1966.6,0.46038172]
[1771214929089,0.0011,1966.9,1966.5,1.19585175]
[1771214929408,0.0011,1966.9,1966.5,1.60538172]
[1771214929614,0.0011,1966.9,1966.5,1.145]
[1771214929798,0.0011,1966.7,1966.6,0.05084691]
[1771214930005,0.0011,1966.7,1966.5,1.65622863]
[1771214930187,0.0011,1966.7,1966.6,0.05084431]
[1771214930387,0.0011,1966.7,1966.5,1.60538172]
[1771214930388,0.0011,1966.7,1966.5,1.65622603]
[1771214930588,0.0011,1966.7,1966.5,1.60538172]
[1771214931102,0.0011,1966.7,1966.6,0.46038172]
[1771214931713,0.0011,1966.7,1966.4,0.001]
[1771214933021,0.0011,1966.7,1966.4,0.46138172]
[1771214942404,0.0011,1966.7,1966.5,0.001]
[1771214942615,0.0011,1966.6,1966.5,0.001]
[1771214944932,0.0011,1966.6,1966.5,0.5121975]
[1771214945321,0.0011,1966.6,1966.5,0.001]
[1771214946817,13.13190496,1968.8,1966.7,30.0]
[1771214947025,0.00153886,1969.0,1968.1,0.46038172]
[1771214947026,0.00153886,1968.7,1968.1,0.46038172]
[1771214947210,0.00153886,1968.7,1968.2,8.92790496]
[1771214947211,0.7213928,1968.7,1968.2,8.92790496]
[1771214947406,0.4574527,1968.6,1967.9,1.159]
[1771214947908,0.4574527,1968.6,1968.0,0.46038172]
[1771214947909,0.00153886,1968.6,1968.0,0.46038172]
[1771214948506,0.26547896,1968.7,1968.0,0.46038172]
[1771214948707,0.00153886,1968.6,1968.0,0.46038172]
[1771214949600,0.00153886,1968.6,1967.7,1.27051564]
[1771214949601,0.00153886,1968.6,1968.1,1.62038172]
[1771214949806,0.00153886,1968.6,1968.2,0.46038172]
[1771214950306,0.00153886,1968.6,1968.1,1.16]
[1771214952539,0.00153886,1968.6,1968.2,0.46038172]
[1771214952849,0.00153886,1969.0,1968.3,0.46038172]
[1771214953610,0.00153886,1969.0,1968.4,0.49099274]
[1771214953810,0.00153886,1969.0,1968.6,0.49099274]
[1771214954532,0.00153886,1969.0,1968.4,1.64999274]
[1771214955417,0.00153886,1969.0,1968.5,0.49099274]
[1771214955835,0.0011,1968.9,1968.4,1.159]
[1771214956241,0.49339414,1968.9,1968.1,2.56599274]
[1771214956643,0.75771022,1968.8,1967.8,0.49099274]
[1771214956845,0.49229414,1968.7,1967.8,0.49099274]
[1771214957017,0.26541608,1968.8,1967.9,0.49099274]
[1771214958236,0.0011,1968.9,1967.9,0.49099274]
[1771214959243,0.0011,1968.9,1968.0,0.49099274]
[1771214959442,0.0011,1968.9,1968.2,0.49099274]
[1771214961053,0.0011,1968.9,1968.1,1.16]
[1771214961054,0.49339414,1968.9,1968.1,1.16]
[1771214961548,0.49339414,1968.9,1968.1,1.65099274]
[1771214963459,0.49339414,1968.9,1968.1,1.16]
[1771214967977,0.49339414,1968.9,1968.2,0.001]
[1771214968156,0.49339414,1968.8,1968.2,0.001]
[1771214974870,0.0011,1968.8,1968.2,0.49199274]
[1771214975072,0.0011,1969.1,1968.3,0.49099274]
[1771214977073,0.0011,1969.1,1968.4,0.49099274]
[1771214979360,0.49339414,1969.1,1968.2,0.001]
[1771214981148,0.49229414,1968.9,1968.2,0.001]
[1771214982160,0.49229414,1968.9,1968.4,0.001]
[1771214996792,0.49229414,1968.9,1968.5,0.001]
[1771214997294,0.49339414,1968.9,1968.5,0.001]
[1771214998091,0.49239387,1968.7,1968.2,0.001]
[1771214999477,0.49239387,1968.7,1968.1,0.001]
[1771214999884,0.49239387,1968.5,1968.1,0.001]
[1771215001568,1.40739387,1968.4,1967.3,0.48650732]
[1771215001789,0.49239387,1968.1,1967.1,1.40150732]
[1771215001989,1.36539387,1968.0,1967.1,1.40150732]
[1771215002293,0.49239387,1967.9,1967.1,0.915]
[1771215002695,0.49239387,1967.9,1967.1,1.40150732]
[1771215003369,0.49239387,1968.4,1967.2,0.48650732]
[1771215003573,0.915,1968.5,1967.2,0.48650732]
[1771215003893,0.49239387,1968.6,1967.3,0.48650732]
[1771215003894,0.873,1968.4,1967.3,0.48650732]
[1771215004394,0.49239387,1968.3,1967.3,0.48650732]
[1771215005490,0.49239387,1968.3,1967.1,0.915]
[1771215005806,0.49239387,1968.3,1967.1,1.40150732]
[1771215006401,0.49239387,1968.3,1967.2,0.48650732]
[1771215010903,0.49239387,1968.3,1967.3,0.001]
[1771215011106,0.49239387,1968.3,1967.3,0.48750732]
[1771215012482,0.49239387,1968.3,1967.3,0.001]
[1771215013211,0.49239387,1968.1,1967.3,0.001]
[1771215013416,0.49239387,1967.9,1967.3,0.001]
[1771215020237,0.876,1968.2,1967.3,0.45690528]
[1771215021534,1.35790523,1968.2,1967.3,0.45690528]
[1771215022928,1.35900523,1968.2,1967.3,0.45690528]
[1771215023134,0.48190523,1968.1,1967.3,0.001]
[1771215023332,0.48190523,1968.1,1967.3,0.45690528]
[1771215024330,0.48190523,1968.1,1967.3,0.001]
[1771215025138,0.48190523,1968.0,1967.3,0.001]
[1771215025844,0.48190523,1967.8,1967.3,0.001]
[1771215026011,2.18526609,1968.1,1967.3,0.001]
[1771215026012,0.48190523,1967.6,1967.3,0.001]
[1771215029641,0.915,1968.1,1967.3,0.001]
[1771215029642,0.48190523,1968.1,1967.3,0.001]
[1771215029812,2.27490523,1968.0,1967.3,0.001]
[1771215030016,1.793,1968.0,1967.3,0.001]
[1771215030247,0.48190523,1967.9,1967.3,0.001]
[1771215032468,1.793,1968.0,1967.3,0.001]
[1771215032967,2.27490523,1968.0,1967.3,0.001]
[1771215033532,0.48190523,1967.9,1967.3,0.001]
[1771215033831,1.793,1968.0,1967.3,0.001]
[1771215033832,2.27490523,1968.0,1967.3,0.45690528]
[1771215034030,0.48190523,1967.9,1967.3,0.001]
[1771215034766,0.879,1967.9,1967.3,0.001]
[1771215035233,0.879,1967.9,1967.3,0.45690528]
[1771215035440,0.0011,1968.2,1967.3,0.45690528]
[1771215035754,0.8801,1968.2,1967.3,0.45690528]
[1771215036560,0.8801,1968.2,1967.5,0.45590528]
[1771215036975,0.0011,1968.1,1967.5,0.45590528]
[1771215052604,0.46626074,1968.1,1967.4,0.001]
[1771215053901,0.46626074,1968.1,1967.4,0.45264642]
[1771215054599,0.0011,1968.1,1967.4,0.45264642]
[1771215058975,0.46626074,1968.1,1967.4,0.45264642]
[1771215060510,0.46626074,1968.1,1967.4,0.001]
[1771215061782,0.46626074,1968.1,1967.4,0.45264642]
[1771215061980,0.0011,1968.1,1967.4,0.45264642]
[1771215064622,0.0011,1968.1,1967.6,0.45164642]
[1771215064817,0.0011,1968.0,1967.6,0.45164642]
[1771215066840,0.46626074,1968.0,1967.5,0.001]
[1771215068008,0.0011,1968.0,1967.5,0.45264642]
[1771215077945,0.0011,1968.0,1967.6,0.001]
[1771215078147,0.0011,1967.9,1967.6,0.46305688]
[1771215079329,0.0011,1967.9,1967.6,0.001]
[1771215085057,0.0011,1967.9,1967.6,0.46305688]
[1771215086658,0.0011,1967.9,1967.6,8.21992717]
[1771215088462,0.0011,1967.9,1967.6,0.46305688]
[1771215089466,0.0011,1967.9,1967.6,0.001]
[1771215091170,0.0011,1967.9,1967.7,0.001]
[1771215092278,0.4698682,1967.9,1967.7,0.001]
[1771215092972,0.0011,1967.9,1967.7,0.001]
[1771215093287,0.0011,1967.9,1967.7,0.46305688]
[1771215093474,0.0011,1967.9,1967.7,0.001]
[1771215096563,0.4698682,1967.9,1967.7,0.001]
[1771215099898,0.0011,1967.9,1967.7,0.001]
[1771215104792,0.0011,1967.9,1967.8,0.001]
[1771215111207,0.0011,1968.1,1967.8,0.001]
[1771215111406,0.45304677,1968.2,1967.8,0.001]
[1771215111581,0.45414677,1968.2,1967.8,0.001]
[1771215115383,0.45304677,1968.2,1967.8,0.001]
[1771215116891,0.45304677,1968.2,1967.9,0.001]
[1771215117092,0.0011,1968.1,1967.9,0.001]
[1771215117886,0.0022,1968.1,1967.9,0.001]
[1771215121900,0.0011,1968.1,1967.9,0.001]
[1771215129022,0.0011,1968.0,1967.9,0.001]
[1771215131627,0.0011,1968.2,1968.0,0.46882836]
[1771215131827,0.0022,1968.2,1968.0,0.46882836]
[1771215132217,0.0011,1968.2,1968.0,0.46882836]
[1771215132928,0.00153886,1969.0,1968.1,0.46882836]
[1771215133230,0.130581,1969.5,1969.0,0.46882836]
[1771215133434,0.0011,1969.4,1969.0,0.46882836]
[1771215133631,0.0011,1969.4,1968.8,0.48237052]
[1771215134230,0.45147644,1969.4,1968.7,0.6]
[1771215134444,0.45037644,1969.2,1968.4,0.48237052]
[1771215134842,8.19842597,1969.1,1968.4,0.48237052]
[1771215135005,0.45037644,1969.0,1968.2,2.50437052]
[1771215135204,7.74694953,1968.9,1968.2,2.50437052]
[1771215135404,0.0011,1968.8,1968.2,2.50437052]
[1771215135633,0.0011,1968.8,1968.2,2.022]
[1771215135831,7.74694953,1968.7,1968.2,2.022]
[1771215136029,7.74694953,1968.7,1968.0,0.48390938]
[1771215136207,0.0011,1968.6,1968.0,0.48390938]
[1771215137444,0.0011,1968.5,1968.0,0.48390938]
[1771215137739,0.8611,1968.8,1968.0,0.48390938]
[1771215138837,0.8611,1968.8,1968.0,0.00153886]
[1771215138838,0.45037644,1968.4,1968.0,0.00153886]
[1771215139030,0.45037644,1968.6,1968.0,0.00153886]
[1771215139215,0.859,1968.6,1968.0,8.23085891]
[1771215139414,0.0011,1968.5,1968.0,8.23085891]
[1771215139645,0.0011,1968.5,1968.1,0.48237052]
[1771215139946,0.915,1969.0,1968.3,0.48237052]
[1771215139947,1.30937644,1969.0,1968.3,0.48237052]
[1771215140109,0.0011,1968.9,1968.3,0.48237052]
[1771215141453,0.0011,1968.9,1968.5,0.48237052]
[1771215142254,0.0011,1968.8,1968.5,0.48237052]
[1771215149043,0.0022,1968.8,1968.5,0.48237052]
[1771215149259,0.0011,1969.1,1968.5,0.48237052]
[1771215149770,0.0011,1969.1,1968.6,7.74694953]
[1771215149966,0.0011,1969.1,1968.6,8.22932005]
[1771215150337,0.0011,1969.1,1968.7,0.48237052]
[1771215151638,0.0011,1969.1,1968.5,0.48237052]
[1771215153993,0.45147644,1969.1,1968.5,0.48237052]
[1771215154288,0.45147644,1969.1,1968.4,7.74694953]
[1771215154647,0.45147644,1969.1,1968.4,8.22932005]
[1771215154850,0.45147644,1969.1,1968.3,1.109]
[1771215155553,0.45147644,1969.1,1968.4,0.001]
[1771215155757,0.45147644,1969.0,1968.4,0.001]
[1771215156777,0.0011,1969.3,1969.0,0.48237052]
[1771215157072,0.130581,1969.5,1969.2,7.74694953]
[1771215157777,0.03716274,1969.5,1969.2,7.74694953]
[1771215158176,0.48753918,1969.5,1969.0,1.116]
[1771215158377,0.45037644,1969.4,1969.0,1.116]
[1771215158674,0.45037644,1969.4,1968.6,0.05064022]
[1771215158873,0.45037644,1969.4,1968.6,1.16764022]
[1771215159450,0.45037644,1969.2,1968.6,1.117]
[1771215160452,0.45037644,1969.4,1968.6,1.117]
[1771215161863,0.45037644,1969.2,1968.6,1.117]
[1771215164576,0.855,1969.3,1968.6,1.57693761]
[1771215165000,0.855,1969.3,1968.6,9.32388714]
[1771215168900,1.3237105,1969.3,1968.6,9.32388714]
[1771215169433,1.3237105,1969.3,1968.6,1.57693761]
[1771215170635,0.4687105,1969.2,1968.6,1.57693761]
[1771215171464,0.4687105,1969.0,1968.5,0.001]
[1771215176672,0.4687105,1968.9,1968.5,0.001]
[1771215177161,1.3257105,1968.9,1968.5,0.001]
[1771215183456,0.4687105,1968.7,1968.5,0.001]
[1771215184661,0.865,1968.6,1968.5,0.001]
[1771215185547,0.865,1968.6,1968.3,0.001]
[1771215185548,1.3337105,1968.6,1968.3,0.001]
[1771215188566,0.865,1968.6,1968.3,0.001]
[1771215188768,0.4687105,1968.5,1968.3,0.001]
[1771215190157,0.865,1968.6,1968.3,0.001]
[1771215190357,1.3337105,1968.6,1968.3,0.001]
[1771215196572,1.3337105,1968.6,1968.4,0.001]
[1771215196772,0.0011,1968.5,1968.4,0.001]
[1771215200092,0.47570112,1968.5,1968.4,0.001]
[1771215202767,0.47570112,1968.5,1968.1,0.001]
[1771215202975,0.47460112,1968.4,1968.1,0.001]
[1771215203197,1.34760112,1968.3,1968.1,0.001]
[1771215203807,0.873,1968.3,1968.1,0.001]
[1771215204520,0.47460112,1968.2,1968.1,0.001]
[1771215205284,1.34760112,1968.3,1968.1,0.001]
[1771215205601,8.6269232,1968.3,1967.9,0.001]
[1771215205778,0.873,1968.3,1967.9,0.001]
[1771215208208,0.47460112,1968.2,1967.9,0.001]
[1771215210403,0.47460112,1968.2,1968.0,0.001]
[1771215213995,0.882,1968.1,1968.0,0.001]
[1771215215685,1.35660112,1968.1,1968.0,0.001]
[1771215219902,0.882,1968.1,1968.0,0.001]
[1771215221097,0.47460112,1968.0,1967.8,0.001]
[1771215221418,0.891,1967.9,1967.8,0.001]
[1771215224308,0.891,1967.9,1967.6,0.001]
[1771215224309,9.10138565,1967.9,1967.6,0.001]
[1771215226426,0.46176576,1967.8,1967.6,0.001]
[1771215226724,0.897,1967.7,1967.6,0.001]
[1771215227903,0.897,1967.7,1967.4,0.001]
[1771215227904,9.11268896,1967.7,1967.4,0.001]
[1771215228098,0.46176576,1967.6,1967.2,0.001]
[1771215228416,1.35976576,1967.5,1967.2,0.001]
[1771215228619,8.6519232,1967.5,1967.0,0.00253886]
[1771215228818,0.0011,1968.0,1967.1,0.46838274]
[1771215229016,0.899,1967.9,1967.2,0.46838274]
[1771215231117,1.36076576,1967.9,1967.2,0.46838274]
[1771215232128,0.899,1967.8,1967.2,0.46838274]
[1771215232603,0.899,1967.7,1967.2,0.46838274]
[1771215235501,0.899,1967.7,1967.2,0.46938274]
[1771215237400,0.8991,1967.8,1967.2,0.46938274]
[1771215245235,0.0011,1967.8,1967.4,0.46838274]
[1771215248506,0.0011,1967.8,1967.2,0.46938274]
[1771215250734,0.0011,1967.8,1967.4,0.46838274]
[1771215251538,0.0011,1967.8,1967.2,0.46938274]
[1771215257940,0.0011,1967.8,1967.2,7.76020792]
[1771215258141,0.0011,1967.8,1967.3,0.47600825]
[1771215259323,0.0011,1967.7,1967.3,0.47600825]
[1771215261718,0.0011,1967.7,1967.5,0.47600825]
[1771215270826,0.0011,1967.6,1967.5,0.47600825]
[1771215273859,0.0011,1967.6,1967.4,9.34321617]
[1771215274561,0.0011,1967.6,1967.4,1.108]
[1771215274858,0.0011,1967.6,1967.4,9.34321617]
[1771215282040,0.0011,1967.7,1967.4,9.34321617]
[1771215283145,0.0011,1967.5,1967.4,9.34321617]
[1771215283349,0.0011,1967.7,1967.4,9.34321617]
[1771215283549,0.0011,1967.6,1967.4,9.34321617]